fUST/lending_fUST_20251029
["ID","MTS","AMOUNT","RATE_DAILY","PERIOD"]
[392587246,1761697842293,-151.0,0.00021373,7]
[392587247,1761697842302,-151.0,0.00021373,7]
[392587248,1761697842313,-151.0,0.00021373,7]
[392587249,1761697842323,-351.379604,0.00021373,7]
[392587250,1761697842332,-151.0,0.00021373,7]
[392587251,1761697842342,-351.379604,0.00021373,7]
[392587252,1761697842353,-189.101952,0.00021373,7]
[392587253,1761697842363,-351.379604,0.00021373,7]
[392587254,1761697842372,-351.379604,0.00021373,7]
[392587255,1761697842382,-151.0,0.00021373,7]
[392587256,1761697842393,-151.0,0.00021373,7]
[392587257,1761697842403,-151.0,0.00021373,7]
[392587258,1761697842413,-151.338742,0.00021373,7]
[392587259,1761697842423,-3339.119209,0.00021373,7]
[392587260,1761697842434,-3339.119209,0.00021373,7]
[392587261,1761697842443,-151.0,0.00021373,7]
[392587262,1761697842454,-3339.119209,0.00021373,7]
[392587263,1761697842463,-151.0,0.00021373,7]
[392587264,1761697842474,-3339.119209,0.00021373,7]
[392587265,1761697842483,-209.827988,0.00021373,7]
[392587266,1761697842493,-217.681047,0.00021373,7]
[392587267,1761697842503,-217.681047,0.00021373,7]
[392587268,1761697842512,-217.681047,0.00021373,7]
[392587269,1761697842522,-217.681047,0.00021373,7]
[392587270,1761697842531,-151.0,0.00021373,7]
[392587271,1761697842541,-151.0,0.00021373,7]
[392587272,1761697842551,-151.0,0.00021413,2]
[392587273,1761697842560,-151.0,0.00021413,2]
[392587274,1761697842570,-216.8402371,0.00021413,2]
[392587275,1761697842579,-151.0,0.00021416,7]
[392587276,1761697842588,-151.0,0.00021416,7]
[392587277,1761697842598,-151.0,0.00021416,7]
[392587278,1761697842608,-151.0,0.00021416,7]
[392587279,1761697842617,-151.0,0.00021416,7]
[392587281,1761697842631,-151.0,0.00021416,7]
[392587283,1761697842641,-155.909829,0.00021416,7]
[392587284,1761697842650,-151.0,0.00021416,7]
[392587285,1761697842660,-151.0,0.00021416,7]
[392587286,1761697842670,-151.0,0.00021416,7]
[392587287,1761697842680,-151.0,0.00021416,7]
[392587288,1761697842689,-151.0,0.00021416,7]
[392587289,1761697842700,-151.0,0.00021416,7]
[392587290,1761697842709,-151.0,0.00021416,7]
[392587291,1761697842719,-231.130227,0.00021416,7]
[392587292,1761697842728,-231.130227,0.00021416,7]
[392587293,1761697842738,-276.673246,0.00021416,7]
[392587294,1761697842747,-231.130227,0.00021416,7]
[392587295,1761697842756,-231.130227,0.00021416,7]
[392587296,1761697842765,-151.0,0.00021416,7]
[392587297,1761697842774,-151.0,0.00021416,7]
[392587299,1761697842783,-151.0,0.00021416,7]
[392587301,1761697842792,-151.0,0.00021416,7]
[392587303,1761697842801,-151.0,0.00021416,7]
[392587305,1761697842810,-151.0,0.00021416,7]
[392587307,1761697842819,-151.0,0.00021416,7]
[392587309,1761697842836,-151.0,0.00021416,7]
[392587310,1761697842845,-151.0,0.00021416,7]
[392587311,1761697842855,-185.878168,0.00021416,7]
[392587312,1761697842865,-151.0,0.00021416,7]
[392587313,1761697842874,-151.0,0.00021416,7]
[392587314,1761697842883,-169.997749,0.00021416,7]
[392587315,1761697842892,-169.997749,0.00021416,7]
[392587316,1761697842903,-169.997749,0.00021416,7]
[392587317,1761697842913,-169.997749,0.00021416,7]
[392587318,1761697842923,-151.0,0.00021416,7]
[392587319,1761697842932,-151.0,0.00021416,7]
[392587320,1761697842942,-197.294834,0.00021416,7]
[392587321,1761697842953,-197.294834,0.00021416,7]
[392587322,1761697842965,-197.294834,0.00021416,7]
[392587323,1761697842976,-197.294834,0.00021416,7]
[392587324,1761697842985,-197.294834,0.00021416,7]
[392587326,1761697842994,-197.294834,0.00021416,7]
[392587327,1761697843005,-197.294834,0.00021416,7]
[392587328,1761697843016,-197.294834,0.00021416,7]
[392587329,1761697843026,-162.040643,0.00021416,7]
[392587330,1761697843036,-151.0,0.00021416,7]
[392587331,1761697843046,-161.392028,0.00021416,7]
[392587332,1761697843055,-151.0,0.00021416,7]
[392587333,1761697843064,-208.750856,0.00021416,7]
[392587334,1761697843073,-151.0,0.00021416,2]
[392587335,1761697843082,-151.0,0.00021416,7]
[392587336,1761697843091,-204.758946,0.00021416,2]
[392587337,1761697843101,-151.0,0.00021416,7]
[392587338,1761697843112,-151.0,0.00021416,7]
[392587339,1761697843123,-178.905045,0.00021416,7]
[392587340,1761697843132,-151.0,0.00021416,7]
[392587341,1761697843141,-351.379604,0.00021416,7]
[392587342,1761697843151,-151.0,0.00021416,7]
[392587343,1761697843160,-351.379604,0.00021416,7]
[392587344,1761697843169,-351.379604,0.00021416,7]
[392587345,1761697843179,-351.379604,0.00021416,7]
[392587346,1761697843188,-151.0,0.00021416,7]
[392587347,1761697843198,-151.0,0.00021416,7]
[392587348,1761697843208,-151.0,0.00021416,7]
[392587349,1761697843219,-3339.119209,0.00021416,7]
[392587350,1761697843229,-583.20540164,0.00021416,7]
[392587355,1761697890886,200.0,0.00029854,120]
[392587356,1761697953480,200.0,0.00028933,120]
[392587357,1761698010818,200.0,0.00029864,120]
[392587358,1761698190760,200.0,0.00028827,120]
[392587359,1761698250762,200.0,0.0002958,120]
[392587360,1761698467069,647.42844994,0.00030136,120]
[392587363,1761698841114,-616.26091492,0.00019321,2]
[392587364,1761698841133,-757.74763745,0.00019321,2]
[392587365,1761698860731,692.217238,0.00013699,2]
[392587367,1761698929151,1000.0,0.0003,120]
[392587368,1761698953139,-1206.00104097,0.00019321,2]
[392587369,1761698974106,-498.82993759,0.00019321,2]
[392587370,1761698974127,-547.44659868,0.00019321,2]
[392587371,1761698974149,-2068.64523523,0.00019321,2]
[392587379,1761699032332,-118.9513731,0.00019321,2]
[392587380,1761699032342,-150.63441308,0.00019754,2]
[392587381,1761699032351,-692.217238,0.00020187,2]
[392587382,1761699032360,-999.0,0.00020205,2]
[392587383,1761699032369,-178.5896253,0.00020368,2]
[392587384,1761699032378,-2071.55478468,0.0002073,2]
[392587385,1761699032396,-239.86244482,0.0002073,2]
[392587386,1761699032405,-1200.0,0.00021107,2]
[392587387,1761699032416,-1801.98629545,0.00021108,2]
[392587388,1761699032431,-618.0188383,0.00021108,2]
[392587389,1761699032440,-273.78110898,0.00021108,2]
[392587390,1761699032450,-300.0,0.00021197,2]
[392587391,1761699032460,-455.96,0.00021198,3]
[392587392,1761699032471,-227.98,0.00021198,3]
[392587394,1761699032491,-683.94,0.00021198,3]
[392587397,1761699032502,-860.55,0.00021198,10]
[392587401,1761699032512,-249.66304896,0.00021207,2]
[392587403,1761699032521,-500.0,0.00021207,2]
[392587407,1761699032531,-500.0,0.00021207,2]
[392587410,1761699032540,-189.56369293,0.00021207,2]
[392587414,1761699032550,-500.0,0.00021207,2]
[392587417,1761699032559,-500.0,0.00021207,2]
[392587419,1761699032568,-500.0,0.00021207,2]
[392587443,1761699032782,-500.0,0.00021207,2]
[392587445,1761699032793,-500.0,0.00021207,2]
[392587447,1761699032802,-500.0,0.00021207,2]
[392587449,1761699032812,-153.69457056,0.00021207,2]
[392587451,1761699032824,-346.30542944,0.00021207,2]
[392587453,1761699032833,-381.94237057,0.00021207,2]
[392587456,1761699032844,-118.05762943,0.00021207,2]
[392587457,1761699032854,-500.0,0.00021207,2]
[392587459,1761699032864,-497.04863376,0.00021207,2]
[392587461,1761699032873,-500.0,0.00021207,2]
[392587463,1761699032882,-500.0,0.00021207,2]
[392587465,1761699032893,-500.0,0.00021207,2]
[392587466,1761699032902,-500.0,0.00021207,2]
[392587467,1761699032911,-500.0,0.00021207,2]
[392587468,1761699032920,-500.0,0.00021207,2]
[392587469,1761699032930,-500.0,0.00021207,2]
[392587470,1761699032939,-500.0,0.00021207,2]
[392587471,1761699032948,-500.0,0.00021207,2]
[392587472,1761699032958,-500.0,0.00021207,2]
[392587473,1761699032967,-500.0,0.00021207,2]
[392587474,1761699032976,-500.0,0.00021207,2]
[392587475,1761699032985,-500.0,0.00021207,2]
[392587476,1761699032995,-500.0,0.00021207,2]
[392587477,1761699033004,-500.0,0.00021207,2]
[392587478,1761699033013,-5.27616269,0.00021207,2]
[392587488,1761699038332,-463.61089071,0.00021207,2]
[392587493,1761699040482,-31.1129466,0.00021207,2]
[392587494,1761699040493,-500.0,0.00021207,2]
[392587495,1761699040503,-500.0,0.00021207,2]
[392587496,1761699040512,-500.0,0.00021207,2]
[392587497,1761699040525,-500.0,0.00021207,2]
[392587498,1761699040535,-500.0,0.00021207,2]
[392587499,1761699040544,-381.35105926,0.00021207,2]
[392587500,1761699040553,-500.0,0.00021207,2]
[392587501,1761699040562,-500.0,0.00021207,2]
[392587502,1761699040571,-500.0,0.00021207,2]
[392587503,1761699040584,-500.0,0.00021207,2]
[392587504,1761699040594,-500.0,0.00021207,2]
[392587505,1761699040603,-500.0,0.00021207,2]
[392587506,1761699040612,-253461.16291587,0.00021208,2]
[392587507,1761699040624,-4846.53860153,0.00021208,2]
[392587509,1761699040639,-33782.99999999,0.00021208,2]
[392587528,1761699043462,-1492.28289868,0.00021208,2]
[392587533,1761699046401,-1801.73,0.00021208,2]
[392587534,1761699046455,-30925.36582529,0.00021208,2]
[392587535,1761699046511,-30335.55098987,0.00021208,2]
[392587536,1761699365694,15562.38,0.00028,120]
[392587538,1761699538741,378.4,0.00030137,120]
[392587543,1761700029935,-161.43634373,0.00018447,2]
[392587544,1761700029954,-165.638025,0.0001863,2]
[392587545,1761700029974,-150.89914448,0.00018764,2]
[392587546,1761700029993,-238.15857618,0.00019699,4]
[392587547,1761700030015,-1200.0,0.00020242,2]
[392587548,1761700030035,-300.0,0.00020242,2]
[392587549,1761700030055,-602.83190052,0.00020243,2]
[392587550,1761700030075,-2408.91627449,0.00020243,2]
[392587551,1761700030095,-297.07886675,0.00020243,2]
[392587552,1761700030113,-178.06099049,0.00020764,2]
[392587553,1761700030133,-393.4980593,0.00021025,2]
[392587554,1761700030154,-544.61,0.00021098,3]
[392587555,1761700030176,-272.31,0.00021098,3]
[392587556,1761700030196,-816.94,0.00021098,3]
[392587557,1761700030217,-393.4980593,0.000211,2]
[392587558,1761700030239,-393.4980593,0.000211,2]
[392587559,1761700030258,-393.4980593,0.000211,2]
[392587560,1761700030277,-393.4980593,0.000211,2]
[392587561,1761700030296,-174.76413428,0.00021107,2]
[392587562,1761700030318,-500.0,0.00021107,2]
[392587563,1761700030339,-499.67207042,0.00021107,2]
[392587564,1761700030358,-500.0,0.00021107,2]
[392587565,1761700030378,-500.0,0.00021107,2]
[392587566,1761700030397,-437.01659276,0.00021107,2]
[392587567,1761700030417,-500.0,0.00021107,2]
[392587568,1761700030438,-500.0,0.00021108,2]
[392587569,1761700030459,-41045.41326061,0.00021108,2]
[392587570,1761700031092,-194.6137041,0.00021108,2]
[392587580,1761700155566,2700.0,0.00030136,120]
[392587581,1761700197550,3000.0,0.00030136,120]
[392587582,1761700222470,2000.0,0.00030136,120]
[392587628,1761700232476,-425.70485444,0.000207,2]
[392587630,1761700232488,-217.67978512,0.000207,2]
[392587632,1761700232496,-395.9980747,0.000208,2]
[392587634,1761700232506,-219.02488716,0.00021073,2]
[392587636,1761700232515,-412.01255886,0.00021073,2]
[392587638,1761700232524,-272.3,0.00021098,3]
[392587640,1761700232534,-816.94,0.00021098,3]
[392587642,1761700232543,-300.0,0.00021105,2]
[392587644,1761700232552,-215.22406586,0.00021105,2]
[392587646,1761700232562,-1286.87090384,0.00021106,2]
[392587649,1761700232577,-3971.4,0.00021106,2]
[392587652,1761700232603,-442.0666617,0.00021106,2]
[392587656,1761700238431,-385.34475436,0.00021106,2]
[392587657,1761700238443,-454.3307457,0.00021106,2]
[392587658,1761700238734,-27995.6929418,0.00021106,2]
[392587664,1761700240718,-5464.3339926,0.00021106,2]
[392587665,1761700240730,-500.0,0.00021108,2]
[392587666,1761700240739,-27793.66600741,0.00021108,2]
[392587670,1761700244535,-12.40781641,0.00021108,2]
[392587677,1761700246521,-3400.47106645,0.00021108,2]
[392587678,1761700246584,-487.07416272,0.00021108,2]
[392587679,1761700254523,3000.0,0.00030136,120]
[392587680,1761700292372,2000.0,0.00030136,120]
[392587681,1761700313431,3000.0,0.00030136,120]
[392587682,1761700345603,2016.27,0.00030136,120]
[392587683,1761700819066,1158.92421987,0.00017429,2]
[392587684,1761700819088,6873.67578013,0.00017429,2]
[392587691,1761701230123,-455.61855773,0.00019669,2]
[392587692,1761701230144,-300.0,0.00019698,2]
[392587693,1761701230165,-14843.6849326,0.00019699,2]
[392587694,1761701230185,-1204.588249,0.00019868,2]
[392587695,1761701230210,-150.0,0.000199,2]
[392587696,1761701230230,-7458.0,0.0002,2]
[392587697,1761701230252,-1000.0,0.00020142,2]
[392587698,1761701230274,-316.62523949,0.00020722,2]
[392587699,1761701230294,-175.21990976,0.00020973,2]
[392587700,1761701230313,-205.83530187,0.00020973,2]
[392587701,1761701230334,-479.54012941,0.00020973,2]
[392587702,1761701230353,-544.6,0.00020998,3]
[392587703,1761701230373,-709.15908103,0.00020998,2]
[392587704,1761701230393,-981.1,0.00021,2]
[392587705,1761701230412,-393.4980593,0.00021,2]
[392587706,1761701230432,-393.4980593,0.00021,2]
[392587707,1761701230452,-393.4980593,0.00021,2]
[392587708,1761701230471,-393.4980593,0.00021,2]
[392587709,1761701230494,-500.0,0.00021007,2]
[392587710,1761701230514,-500.0,0.00021007,2]
[392587711,1761701230535,-500.0,0.00021007,2]
[392587712,1761701230555,-500.0,0.00021007,2]
[392587713,1761701230577,-500.0,0.00021007,2]
[392587714,1761701230600,-500.0,0.00021007,2]
[392587715,1761701230622,-500.0,0.00021007,2]
[392587716,1761701230643,-565.99500509,0.00021007,2]
[392587717,1761701230664,-500.0,0.00021007,2]
[392587718,1761701230687,-500.0,0.00021007,2]
[392587719,1761701230708,-500.0,0.00021007,2]
[392587720,1761701230729,-500.0,0.00021007,2]
[392587721,1761701230749,-500.0,0.00021007,2]
[392587722,1761701230771,-500.0,0.00021007,2]
[392587723,1761701230790,-500.0,0.00021007,2]
[392587724,1761701230811,-500.0,0.00021007,2]
[392587725,1761701230831,-500.0,0.00021007,2]
[392587726,1761701230852,-500.0,0.00021007,2]
[392587727,1761701230872,-400.52250615,0.00021007,2]
[392587728,1761701230892,-500.0,0.00021007,2]
[392587729,1761701230914,-500.0,0.00021007,2]
[392587730,1761701230936,-78023.88584934,0.00021008,2]
[392587731,1761701237070,-569.85928366,0.000209,2]
[392587732,1761701237089,-87.84525968,0.00021,2]
[392587780,1761701431834,-183.77890653,0.00019799,2]
[392587782,1761701431844,-300.0,0.00019999,2]
[392587784,1761701431853,-2449.38018685,0.0002,2]
[392587786,1761701431866,-1660.54967427,0.0002,2]
[392587795,1761701437756,-357.28958544,0.0002,2]
[392587796,1761701437767,-285.832698,0.0002,2]
[392587797,1761701437778,-15348.74141459,0.0002,2]
[392587798,1761701437789,-198.7078941,0.00020879,2]
[392587799,1761701437799,-1206.86480533,0.00020908,2]
[392587800,1761701437807,-319.6934196,0.0002094,2]
[392587801,1761701437816,-175.21990972,0.0002094,2]
[392587802,1761701437826,-498.62687322,0.0002094,2]
[392587803,1761701437835,-284.1226583,0.00020995,2]
[392587804,1761701437844,-305.65279962,0.00021,2]
[392587805,1761701437854,-206022.37022552,0.00021008,2]
[392587806,1761701438211,-13491.28235541,0.00021008,2]
[392587811,1761701439926,-44971.38709258,0.00021008,2]
[392587828,1761701447288,446.5,0.0003013,120]
[392587847,1761701853316,652.105469,0.00013699,2]
[392587849,1761701911957,426.67,0.00030137,120]
[392587852,1761702148823,4223.0,0.000301,120]
[392587870,1761702340944,1000.0,0.00030136,120]
[392587871,1761702445277,-186.10332683,0.00019463,5]
[392587872,1761702445304,-150.0,0.00019991,2]
[392587873,1761702445331,-652.105469,0.00020187,2]
[392587874,1761702445355,-500.0,0.00020446,2]
[392587875,1761702445380,-480.4710556,0.00020953,2]
[392587876,1761702445404,-2117.3549168,0.00020953,2]
[392587877,1761702445428,-300.0,0.00021006,2]
[392587878,1761702445453,-500.0,0.00021007,2]
[392587879,1761702445655,-500.0,0.00021007,2]
[392587880,1761702445680,-331.14875729,0.00021007,2]
[392587881,1761702445707,-208.0559127,0.00021008,2]
[392587882,1761702445733,-166.0,0.00021008,2]
[392587883,1761702445755,-166.0,0.00021008,2]
[392587884,1761702445778,-400.4638382,0.000211,2]
[392587885,1761702445798,-393.4980593,0.000211,2]
[392587886,1761702445822,-170.51077025,0.00021207,2]
[392587887,1761702445846,-205.80011743,0.00021266,2]
[392587888,1761702445866,-189.9537085,0.00021288,2]
[392587889,1761702445885,-749.1616747,0.00021299,2]
[392587890,1761702445905,-194.112805,0.00021299,2]
[392587891,1761702445924,-155.0683804,0.00021299,2]
[392587892,1761702445956,-190.5078649,0.00021299,2]
[392587893,1761702445979,-153.0,0.00021299,2]
[392587894,1761702445999,-190.5078649,0.00021299,2]
[392587895,1761702446020,-153.0,0.00021299,2]
[392587896,1761702446041,-153.0,0.00021299,2]
[392587897,1761702446061,-166.0,0.00021329,2]
[392587898,1761702446080,-403.6515735,0.00021357,2]
[392587899,1761702446101,-151.0,0.0002136,2]
[392587900,1761702446120,-201.03993149,0.0002136,2]
[392587901,1761702446140,-196.71922102,0.0002136,2]
[392587902,1761702446160,-500.0,0.0002136,2]
[392587903,1761702446180,-151.157804,0.0002136,2]
[392587904,1761702446198,-165.67907628,0.0002136,2]
[392587905,1761702446220,-331.0,0.0002136,2]
[392587906,1761702446240,-163.0,0.0002136,2]
[392587907,1761702446259,-331.0,0.0002136,2]
[392587908,1761702446279,-163.49587639,0.0002136,2]
[392587909,1761702446298,-166.0,0.0002136,2]
[392587910,1761702446318,-331.0,0.0002136,2]
[392587911,1761702446339,-172.0,0.0002136,2]
[392587912,1761702446357,-331.0,0.0002136,2]
[392587913,1761702446376,-331.0,0.0002136,2]
[392587914,1761702446397,-331.0,0.0002136,2]
[392587915,1761702446417,-331.0,0.0002136,2]
[392587916,1761702446438,-331.0,0.0002136,2]
[392587917,1761702446457,-331.0,0.0002136,2]
[392587918,1761702446476,-331.0,0.0002136,2]
[392587919,1761702446495,-331.0,0.0002136,2]
[392587920,1761702446514,-331.0,0.0002136,2]
[392587921,1761702446533,-331.0,0.0002136,2]
[392587922,1761702446552,-331.0,0.0002136,2]
[392587923,1761702446570,-331.0,0.0002136,2]
[392587924,1761702446589,-331.0,0.0002136,2]
[392587925,1761702446611,-72.57531345,0.0002136,2]
[392587926,1761702453093,-258.42468655,0.0002136,2]
[392587927,1761702453112,-331.0,0.0002136,2]
[392587928,1761702453132,-331.0,0.0002136,2]
[392587929,1761702453152,-331.0,0.0002136,2]
[392587930,1761702453171,-50.95346491,0.0002136,2]
[392587967,1761702631926,-552.98123024,0.00020116,2]
[392587968,1761702631936,-274.93811909,0.0002013,2]
[392587969,1761702631946,-72.49217181,0.00020288,2]
[392587970,1761702631957,-77.50782819,0.00020288,2]
[392587971,1761702631966,-500.0,0.00020446,2]
[392587972,1761702631975,-192.5977015,0.00021316,2]
[392587973,1761702631985,-331.0,0.00021334,2]
[392587974,1761702631994,-300.0,0.00021359,2]
[392587975,1761702632003,-231.86099855,0.0002136,2]
[392587976,1761702632015,-99.13900145,0.0002136,2]
[392587977,1761702632024,-331.0,0.0002136,2]
[392587978,1761702632033,-331.0,0.0002136,2]
[392587979,1761702632042,-331.0,0.0002136,2]
[392587980,1761702632051,-331.0,0.0002136,2]
[392587981,1761702632060,-331.0,0.0002136,2]
[392587982,1761702632069,-331.0,0.0002136,2]
[392587983,1761702632078,-331.0,0.0002136,2]
[392587984,1761702632087,-331.0,0.0002136,2]
[392587985,1761702632096,-331.0,0.0002136,2]
[392587986,1761702632105,-331.0,0.0002136,2]
[392587987,1761702632114,-303.18682453,0.0002136,2]
[392587988,1761702632123,-269.97417402,0.0002137,2]
[392587989,1761702632134,-139.38582598,0.0002137,2]
[392587990,1761702632143,-160.5,0.000214,4]
[392587991,1761702632153,-160.5,0.000214,4]
[392587992,1761702632162,-399.48183451,0.000214,2]
[392587993,1761702632177,-602.94162749,0.000214,2]
[392587994,1761702632186,-168.0,0.00021416,2]
[392587995,1761702632195,-168.0,0.00021626,2]
[392587996,1761702632204,-66.20963862,0.00021683,2]
[392588014,1761702637776,-331.0,0.00021334,2]
[392588015,1761702637787,-101.79036138,0.00021683,2]
[392588016,1761702637798,-936.43,0.00021728,2]
[392588017,1761702637807,-236.46770777,0.0002175,2]
[392588018,1761702637818,-197.22823501,0.0002175,2]
[392588019,1761702637881,-240.11891151,0.0002175,2]
[392588020,1761702637892,-151.0,0.000218,4]
[392588021,1761702637902,-188.43411113,0.000218,2]
[392588022,1761702637911,-565.52845548,0.00021816,2]
[392588023,1761702637922,-500.0,0.00021816,2]
[392588024,1761702637935,-185.75369492,0.00021816,2]
[392588025,1761702637948,-5134.24646713,0.00021817,2]
[392588026,1761702638600,-2418.27722026,0.00021817,2]
[392588027,1761702638612,-22570.0,0.00021817,2]
[392588038,1761702643970,-500.0,0.00020273,2]
[392588039,1761702643981,-3562.9,0.00021817,2]
[392588040,1761702643994,-663.62072788,0.00021817,2]
[392588047,1761702646008,-678.92998736,0.00021817,2]
[392588113,1761703641137,-1190.0,0.0002,2]
[392588114,1761703641162,-200.0,0.0002,2]
[392588115,1761703641184,-150.0,0.00020226,2]
[392588116,1761703641211,-359.9045708,0.00020598,2]
[392588117,1761703641235,-181.0523738,0.00020688,2]
[392588118,1761703641259,-1027.86279859,0.00020904,2]
[392588133,1761703832143,-357.72346671,0.00020904,2]
[392588134,1761703832154,-150.0,0.00021132,2]
[392588135,1761703832164,-681.36103791,0.0002136,2]
[392588136,1761703832173,-264.96908396,0.00021435,2]
[392588137,1761703832182,-2209.71299603,0.00021483,2]
[392588138,1761703832191,-806.77985277,0.00021496,2]
[392588230,1761703840230,-291.87287111,0.00021496,2]
[392588233,1761703840239,-693.96448028,0.000216,2]
[392588404,1761704076984,223.43898631,0.00016814,2]
[392588405,1761704077670,223.43898631,0.00016814,2]
[392588406,1761704418663,9662.21,0.00030137,120]
[392588412,1761704803596,19005.232,0.0003,120]
[392588414,1761704828143,-500.0,0.00020173,2]
[392588415,1761704828166,-150.0,0.00020176,2]
[392588416,1761704828190,-252.81606332,0.00020441,2]
[392588418,1761704852090,-350.53656368,0.00020441,2]
[392588419,1761704852110,-999.0,0.00020561,2]
[392588420,1761704852130,-499.42976038,0.00021363,2]
[392588421,1761704852150,-236.46770777,0.00021528,2]
[392588422,1761704852170,-188.43411113,0.00021533,2]
[392588423,1761704852190,-453.91116368,0.00021533,2]
[392588424,1761704852209,-196.44651391,0.000216,2]
[392588434,1761704970091,648.951589,0.00013699,2]
[392588464,1761705032338,-285.15033212,0.00020087,3]
[392588465,1761705032348,-500.0,0.00020173,2]
[392588466,1761705032358,-648.951589,0.00020187,2]
[392588467,1761705032367,-397.17226822,0.00021533,2]
[392588468,1761705032376,-236.46770777,0.00021533,2]
[392588469,1761705032385,-143.44900581,0.000216,2]
[392588470,1761705032395,-185.78,0.00021607,3]
[392588471,1761705032406,-557.37,0.00021607,3]
[392588472,1761705032415,-300.0,0.00021615,2]
[392588473,1761705032424,-50.8055723,0.00021616,2]
[392588479,1761705038188,-305.3211593,0.00021594,2]
[392588481,1761705040520,-897.07942333,0.00021594,2]
[392588482,1761705040531,-869.15420207,0.00021594,2]
[392588483,1761705040541,-449.1944277,0.00021616,2]
[392588484,1761705040551,-500.0,0.00021616,2]
[392588485,1761705040561,-631.32890227,0.00021616,2]
[392588486,1761705040570,-500.0,0.00021616,2]
[392588487,1761705040579,-500.0,0.00021616,2]
[392588488,1761705040588,-500.0,0.00021616,2]
[392588489,1761705040597,-500.0,0.00021616,2]
[392588490,1761705040606,-503.55823454,0.00021616,2]
[392588491,1761705040615,-500.0,0.00021616,2]
[392588492,1761705040624,-280.53843312,0.00021616,2]
[392588494,1761705040633,-500.0,0.00021616,2]
[392588495,1761705040643,-500.0,0.00021616,2]
[392588496,1761705040651,-500.0,0.00021616,2]
[392588497,1761705040661,-500.0,0.00021616,2]
[392588498,1761705040670,-500.0,0.00021616,2]
[392588499,1761705040680,-500.0,0.00021616,2]
[392588500,1761705040689,-500.0,0.00021616,2]
[392588502,1761705040698,-349.05664417,0.00021616,2]
[392588503,1761705040707,-244.90810118,0.00021616,2]
[392588504,1761705040717,-500.0,0.00021616,2]
[392588505,1761705040726,-500.0,0.00021616,2]
[392588506,1761705040735,-500.0,0.00021616,2]
[392588507,1761705040745,-500.0,0.00021616,2]
[392588508,1761705040755,-388.04930209,0.00021616,2]
[392588509,1761705040763,-500.0,0.00021616,2]
[392588510,1761705040772,-500.0,0.00021616,2]
[392588511,1761705040782,-500.0,0.00021616,2]
[392588512,1761705040791,-500.0,0.00021616,2]
[392588513,1761705040800,-500.0,0.00021616,2]
[392588514,1761705040810,-500.0,0.00021616,2]
[392588515,1761705040820,-544.42034656,0.00021616,2]
[392588516,1761705040830,-6690.40431369,0.00021617,2]
[392588530,1761705189473,5000.0,0.00030137,120]
[392588531,1761705215353,5000.0,0.00030137,120]
[392588532,1761705232716,5000.0,0.00030137,120]
[392588535,1761705252206,5000.0,0.00030137,120]
[392588542,1761705285883,3013.0,0.00030137,120]
[392588565,1761706032649,1000.0,0.0003,120]
[392588566,1761706036121,-1262.42194265,0.00018989,5]
[392588568,1761706054242,-3649.57805735,0.00018989,5]
[392588569,1761706054267,-150.0,0.00018995,2]
[392588570,1761706054289,-501.32112571,0.00019,2]
[392588571,1761706054309,-413.2331441,0.00019571,2]
[392588572,1761706054331,-300.0,0.0001987,2]
[392588573,1761706054352,-12436.31981022,0.00019871,2]
[392588574,1761706054375,-420.0598259,0.0001999,2]
[392588575,1761706054566,-265.33881134,0.0001999,2]